Cogmind - Beta 11.1 @@@ ROGUE MODE // 2022.07.26 @ 05:27:08 Player: Vena Result: Destroyed by L-31 Rogue with Katana Performance ------------- Evolutions (2) 1000 Regions Visited (3) 600 Robots Destroyed (37) 185 Value Destroyed (903) 903 Prototype IDs (0) 0 Alien Tech Used (0) 0 Bonus (98) 98 TOTAL SCORE: 2786 Bonus ------- High Alert Combat Kills 98 Cogmind --------- Core Integrity 0/550 Matter 235/300 Energy 54/100 System Corruption 3% Temperature Cool (0) Movement Core (250) Ox4 Location -8/Materials Parts ------- > --- POWER (2) -------- (None) > --- PROPULSION (3) --- (None) > --- UTILITY (3) ------ Medium Storage Unit Improved Signal Interpreter > --- WEAPON (3) ------- Katana Katana > --- INVENTORY (10) --- Compact Wheel Medium Storage Unit Visual Processing Unit Flak Cannon EMP Blaster Peak State ------------ > --- POWER ------------ Light Nuclear Core > --- PROPULSION ------- Aluminum Leg Aluminum Leg Aluminum Leg > --- UTILITY ---------- Medium Storage Unit Improved Signal Interpreter Field Recycling Unit > --- WEAPON ----------- Minigun Flak Cannon Katana > --- INVENTORY -------- Aluminum Leg Aluminum Leg Wheel Compact Wheel Medium Storage Unit Visual Processing Unit Assault Rifle Shotgun EMP Blaster Katana [Rating: 22] Favorites ----------- Power Light Ion Engine Engine Light Ion Engine Power Core Light Nuclear Core Propulsion Compact Wheel Leg Aluminum Leg Wheel Compact Wheel Utility Medium Storage Unit Device Field Recycling Unit Storage Medium Storage Unit Processor Improved Signal Interpreter Weapon Shotgun Energy Gun Small Laser Ballistic Gun Shotgun Ballistic Cannon Flak Cannon Launcher Rocket Launcher Slashing Weapon Katana Build | -11 -10 -9 -8 ------- Run | Scr Mat Mat Mat Slots Evolved 4 | . . 2 2 Power 1 | . . . 1 Propulsion 1 | . . 1 . Utility 1 | . . 1 . Weapon 1 | . . . 1 Parts Attached 56 | 8 7 9 32 Power 4 | 1 . 1 2 Engine 3 | 1 . 1 1 Core 1 | . . . 1 Reactor . | . . . . Propulsion 19 | 2 . 3 14 Treads . | . . . . Leg 12 | . . 2 10 Wheel 7 | 2 . 1 4 Hover . | . . . . Flight . | . . . . Utility 7 | 2 2 2 1 Device 3 | . 1 2 . Storage 3 | 2 1 . . Processor 1 | . . . 1 Hackware . | . . . . Protection . | . . . . Artifact . | . . . . Weapon 26 | 3 5 3 15 Energy Gun 1 | 1 . . . Energy Cannon . | . . . . Ballistic Gun 10 | 2 2 1 5 Ballistic Cannon 2 | . . . 2 Launcher 9 | . 3 2 4 Special Weapon . | . . . . Impact Weapon . | . . . . Slashing Weapon 4 | . . . 4 Piercing Weapon . | . . . . Special Melee Weapon . | . . . . Unidentified Prototypes . | . . . . Parts Lost 17 | . . . 17 Power 3 | . . . 3 Propulsion 9 | . . . 9 Utility 1 | . . . 1 Weapon 4 | . . . 4 Highest Loss Streak 8 | . . . 8 To Critical Strikes . | . . . . Average Slot Usage (%) 86 | . 93 91 79 Engine 8 | . 14 11 3 Leg 7 | . . 3 14 Wheel 18 | . 28 23 10 Device 11 | . 2 20 10 Storage 12 | . 19 11 9 Processor 1 | . . . 3 Ballistic Gun 10 | . 17 11 4 Ballistic Cannon 2 | . . . 5 Launcher 8 | . 10 10 6 Slashing Weapon 3 | . . . 8 Naked Turns . | . . . . Heaviest Build 35 | 16 21 29 35 Greatest Support 36 | 26 26 36 36 Greatest Overweight (x) 3 | . . 2 3 Average Overweight (x) . | . . . . Largest Inventory Capacity 10 | 8 10 10 10 Average Capacity 9 | 5 9 10 10 Most Carried 10 | 5 9 10 10 Average Carried 8 | 3 7 9 9 Final Capacity 10 | 8 10 10 10 Final Carried 10 | 4 9 10 5 Class Distribution -------------------- 89% | Mutant 7% | Scavenger-Mutant Dominant Class ---------------- Mutant | -10/Materials Mutant | -9/Materials Mutant | -8/Materials Resources | -11 -10 -9 -8 ----------- Run | Scr Mat Mat Mat Matter Collected 1061 | 279 15 242 525 Remotely . | . . . . Salvage Created 1057 | 89 15 242 711 Parts 70 | 2 1 21 46 Haulers Intercepted 1 | . . 1 . Recyclers Shooed 1 | . . . 1 Parts Field Recycled 15 | . . 4 11 Retrieved Matter 88 | . . 25 63 Parts Self-Destructed . | . . . . Prevented . | . . . . Kills | -11 -10 -9 -8 ------- Run | Scr Mat Mat Mat Combat Hostiles Destroyed 23 | . 1 8 14 Melee 5 | . . . 5 Guns 6 | . 1 4 1 Cannons 3 | . . . 3 AOE 9 | . . 4 5 Classes Destroyed 12 | 1 1 4 6 Worker 2 | . . 1 1 Builder 3 | . . . 3 Tunneler 2 | . . 2 . Hauler 1 | . . 1 . Recycler 4 | 1 . . 3 Operator 1 | . . . 1 Watcher 1 | . . . 1 Swarmer 7 | . 1 3 3 Grunt 12 | . . 5 7 Brawler 1 | . . . 1 Duelist 1 | . . . 1 Sentry 2 | . . . 2 Best Kill Streak 5 | 1 1 5 4 Combat Bots Only 3 | . 1 3 3 Max Kills in Single Turn 3 | 1 1 3 3 Gunslinging 1 | . . 1 . Exploded 2 | . . 1 2 Melee 1 | . . . 1 Uniques/NPCs Destroyed . | . . . . Combat | -11 -10 -9 -8 -------- Run | Scr Mat Mat Mat Damage Taken 2301 | . 14 241 2046 Core 595 | . . 34 561 Absorbed by Shields . | . . . . Core Remaining (%) 97 | 100 100 91 . Volleys Fired 68 | 11 3 17 37 Largest 3 | 1 2 2 3 Hottest 77 | 20 46 56 77 Shots Fired 104 | 11 6 27 60 Gun 50 | 11 6 16 17 Cannon 22 | . . . 22 Launcher 32 | . . 11 21 Special . | . . . . Kinetic 72 | 11 6 16 39 Thermal . | . . . . Explosive 32 | . . 11 21 Electromagnetic . | . . . . Robot Hit Streak 9 | 4 2 4 9 Robot Miss Streak 8 | 2 2 6 8 Penetration Max . | . . . . Secondary Targets 1 | . . 1 . Max Gunslinging Chain 1 | . . 1 . Shots Hit Robots 85 | 7 3 13 62 Core Hits 70 | 2 1 17 50 Critical Kills . | . . . . Critical Parts Destroyed . | . . . . Critical Strikes . | . . . . Melee Attacks 30 | . . . 30 Impact . | . . . . Slashing 30 | . . . 30 Piercing . | . . . . Sneak Attacks 4 | . . . 4 Combat Hostiles . | . . . . Follow-up Attacks . | . . . . Damage Inflicted 2879 | 91 44 662 2082 Guns 535 | 91 44 190 210 Cannons 361 | . . . 361 Explosions 1158 | . . 472 686 Melee 825 | . . . 825 Ramming . | . . . . Kinetic 896 | 91 44 190 571 Thermal . | . . . . Explosive 1158 | . . 472 686 Electromagnetic . | . . . . Impact . | . . . . Slashing 825 | . . . 825 Piercing . | . . . . Highest Corruption 3 | . . . 3 Average Corruption 3 | . . . 3 Corruption Purged . | . . . . Corruption Blocked . | . . . . Effects 1 | . . . 1 Matter Fused 1 | . . . 1 Overload Shots . | . . . . Overflow Damage 140 | . . . 140 Projectiles 3 | . . . 3 Explosions 1 | . . . 1 Melee 136 | . . . 136 Knockbacks 15 | . . . 15 Impact . | . . . . Kinetic 14 | . . . 14 Secondary 1 | . . . 1 Self-Inflicted Damage 96 | . . 46 50 Shots 3 | . . 1 2 Rammed . | . . . . Targets Rammed . | . . . . Kicked . | . . . . Crushed . | . . . . Highest Temperature 30 | . . 14 30 Average Temperature 7 | . . 5 7 Received Heat Transfer 663 | . . 78 585 Siege Activations . | . . . . Robots Corrupted . | . . . . Combat Hostiles . | . . . . Parts Fried . | . . . . Impact Corruptions . | . . . . Robots Melted . | . . . . Combat Hostiles . | . . . . Parts Melted . | . . . . Heat Transferred . | . . . . Parts Sabotaged . | . . . . Parts Stolen . | . . . . Parts Stripped . | . . . . Power Chain Reactions . | . . . . Missiles Intercepted . | . . . . Alert | -11 -10 -9 -8 ------- Run | Scr Mat Mat Mat Peak Influence 647 | 5 145 512 647 Initial 215 | . 3 61 215 Average 285 | 1 44 350 442 Maximum Alert Level 2 | . . 2 2 Low Security (%) 35 | 100 100 11 . Level 1 19 | . . 19 35 Level 2 44 | . . 69 64 Level 3 . | . . . . Level 4 . | . . . . Level 5 . | . . . . High Security . | . . . . Max Security . | . . . . Squads Dispatched 3 | . . . 3 Investigation . | . . . . Extermination . | . . . . Reinforcement 2 | . . . 2 Assault 1 | . . . 1 Garrison . | . . . . Intercept . | . . . . Searches Triggered . | . . . . Construction Impeded . | . . . . Haulers Reinforced . | . . . . Active Scanning Responses . | . . . . Cargo Convoy Interrupts . | . . . . Stealth | -11 -10 -9 -8 --------- Run | Scr Mat Mat Mat Distress Signals 3 | . 1 . 2 Communications Jammed . | . . . . Distress Signals . | . . . . Times Spotted 42 | . 6 8 28 Peak Tracking Total 5 | . 4 4 5 Tactical Retreats 3 | . 3 . . Traps | -11 -10 -9 -8 ------- Run | Scr Mat Mat Mat Traps Triggered . | . . . . Indirectly . | . . . . Trap Hack Attempts . | . . . . Triggered . | . . . . Disarmed . | . . . . Reprogrammed . | . . . . Reused . | . . . . Traps Extracted . | . . . . Installed . | . . . . Triggered . | . . . . Machines | -11 -10 -9 -8 ---------- Run | Scr Mat Mat Mat Machines Disabled 5 | . . 1 4 Max in Single Turn 2 | . . 1 2 Machines Sabotaged . | . . . . Garrisons Compromised . | . . . . Overloaded Fab Kills . | . . . . Hacking | -11 -10 -9 -8 --------- Run | Scr Mat Mat Mat Machines Accessed 6 | . 3 2 1 Terminals 3 | . 3 . . Fabricators . | . . . . Repair Stations . | . . . . Recycling Units 2 | . . 1 1 Scanalyzers 1 | . . 1 . Garrison Access . | . . . . Total Hacks 14 | . 7 4 3 Successful 7 | . 3 4 . Failed 7 | . 4 . 3 Catastrophic . | . . . . Database Lockouts . | . . . . Manual . | . . . . Terminals 7 | . 7 . . Fabricators . | . . . . Repair Stations . | . . . . Recycling Units 5 | . . 2 3 Scanalyzers 2 | . . 2 . Garrison Access . | . . . . Terminal Hacks 3 | . 3 . . Alert Level 1 | . 1 . . Locate Traps 1 | . 1 . . Registered Components 1 | . 1 . . Fabricator Hacks . | . . . . Repair Station Hacks . | . . . . Recycling Unit Hacks 2 | . . 2 . Report Inventory 1 | . . 1 . Retrieve Matter 1 | . . 1 . Scanalyzer 2 | . . 2 . Insert Component 1 | . . 1 . Analyze 1 | . . 1 . Garrison Access Hacks . | . . . . Unauthorized Hacks . | . . . . Terminals . | . . . . Fabricators . | . . . . Repair Stations . | . . . . Recycling Units . | . . . . Scanalyzers . | . . . . Garrison Access . | . . . . Data Cores Recovered . | . . . . Used . | . . . . Hacking Detections 5 | . 2 2 1 Full Trace Events . | . . . . Feedback Events . | . . . . Feedback Blocked . | . . . . Robot Schematics Acquired . | . . . . Robots Built . | . . . . Authchips . | . . . . Time . | . . . . Total Robot Build Rating . | . . . . Part Schematics Acquired 1 | . . 1 . Parts Built . | . . . . Authchips . | . . . . Time . | . . . . Total Part Build Rating . | . . . . Parts Repaired . | . . . . Time . | . . . . Parts Recycled . | . . . . Recycled Matter . | . . . . Retrieved Matter 131 | . . 131 . Retrieved Components . | . . . . Parts Scanalyzed 1 | . . 1 . Part Schematics Acquired 1 | . . 1 . Parts Damaged . | . . . . Bothacking | -11 -10 -9 -8 ------------ Run | Scr Mat Mat Mat Used RIF Installer . | . . . . Robots Hacked . | . . . . Non-combat . | . . . . Combat . | . . . . Robot Hacks Applied . | . . . . Relay Couplers Released . | . . . . Fabnet Peak Effective % . | . . . . Robots Rewired . | . . . . Allies Hacked . | . . . . Hacks Repelled . | . . . . Allies | -11 -10 -9 -8 -------- Run | Scr Mat Mat Mat Total Allies . | . . . . Largest Group . | . . . . Highest-Rated Group . | . . . . Highest-Rated Ally . | . . . . Total Orders . | . . . . Ally Attacks . | . . . . Total Damage . | . . . . Kills . | . . . . Allies Corrupted . | . . . . Allies Melted . | . . . . Intel | -11 -10 -9 -8 ------- Run | Scr Mat Mat Mat Robot Analysis Total . | . . . . Derelict Logs Recovered . | . . . . Drone Launches . | . . . . Drone Recoveries . | . . . . Exploration | -11 -10 -9 -8 ------------- Run | Scr Mat Mat Mat Turns Passed 1295 | 91 334 336 534 Spaces Moved 833 | 56 327 214 236 Core 2 | 1 . . 1 Treads . | . . . . Legs 168 | . . 43 125 Wheels 663 | 55 327 171 110 Hover . | . . . . Flight . | . . . . Fastest Speed 50 | 50 90 86 86 Average Speed 111 | 88 90 128 131 Slowest Speed 260 | 90 90 260 260 Overloaded Moves . | . . . . Propulsion Burnouts . | . . . . Robots Hopped . | . . . . Cave-ins Triggered . | . . . . Exploration Rate (%) 22 | 3 43 23 19 Regions Visited 3 Branch Regions . Pre-discovered Areas . | . . . . Known Exits Taken . | . . . . Unknown Exits Taken 3 | 1 1 1 . Scrap Searched . | . . . . Spaces Dug . | . . . . Terrain Destroyed 203 | . . 80 123 Melee . | . . . . Projectile . | . . . . AOE 203 | . . 80 123 Terrain Rammed . | . . . . Walls Destroyed . | . . . . Machines Disabled . | . . . . Actions | -11 -10 -9 -8 --------- Run | Scr Mat Mat Mat Total 1038 | 84 360 247 347 Wait 19 | . 14 . 5 Move 830 | 55 326 213 236 Hop . | . . . . Pick Up 22 | 9 7 3 3 Fast Attach 13 | 3 1 2 7 Attach 17 | 4 1 2 10 Detach 3 | . . 2 1 Swap 26 | 1 5 5 15 Drop 10 | 1 3 3 3 Fire 68 | 11 3 17 37 Melee 30 | . . . 30 Ram . | . . . . Kick . | . . . . Crush . | . . . . Escape Stasis . | . . . . Rewire . | . . . . Trap . | . . . . Miscellaneous . | . . . . Route ------- -11/Scrapyard -10/Materials -9/Materials -8/Materials History --------- Turn | Location | Event 7 | -11/Scrapyard | Discovered new exit (range 15) 92 | -11/Scrapyard | Entered Materials 305 | -10/Materials | Build established: Mutant 408 | -10/Materials | Discovered new exit (range 13) 426 | -10/Materials | Entered another Materials area 426 | -9/Materials | Evolved 2 slots: Propulsion x1, Utility x1 746 | -9/Materials | Discovered new exit (range 16) 762 | -9/Materials | Entered another Materials area 762 | -8/Materials | Evolved 2 slots: Power x1, Weapon x1 1086 | -8/Materials | Lost 3 parts (2n1w) 1162 | -8/Materials | First assault squad dispatched 1271 | -8/Materials | Core integrity fell below 50% 1290 | -8/Materials | Core integrity fell below 20% 1296 | -8/Materials | Destroyed by L-31 Rogue with Katana Last Messages --------------- 01248_ M-28 Smith unfolds itself. 01253_ Field Recycling Unit severed. 01253_ Lgt. Nuclear Core destroyed. 01253_ System corrupted by crushing effect (+3). 01256_ K-01 Serf collects debris. 01261_ B-36 Bruiser destroyed. 01264_ K-01 Serf collects debris. 01265_ Minigun severed. 01266_ Shotgun severed. 01268_ Aluminum Leg destroyed. 01271_ L-31 Rogue destroyed. 01275_ System corrupted: Matter fused (-9). 01275_ Aluminum Leg destroyed. 01275_ Katana destroyed. 01281_ Assault Rifle destroyed. 01285_ Aluminum Leg destroyed. 01289_ K-01 Serf collects debris. 01290_ Wheel severed. 01292_ K-01 Serf collects debris. 01296_ Acquired Katana. Map ----- +----------------------------------------------------+ | ?????????????????????????????????????????????????? | | ?????????????????????????????????????????????????? | | ?????????????????????????????????????????????????? | | ?????????????????????????????????????????????????? | | ?????????????????????????????????????????????????? | | ?????????????????????????????????????????????????? | | ?????????????????????????????????????????????????? | | ?????????????????????????????????????????????????? | | ?????????????????????????????????????????????????? | | ?????????????????????????????????????????????????? | | ?????????????????????????????????????????????????? | | ????????????????????????????? ?????????????????? | | ????????????????????????????? +????????????????? | | ????????????????????????????? #????????????????? | | ????????????????????????????? #????????????????? | | ????????????????????????????# #????????????????? | | ????????????????????????????# #????????????????? | | ?????????????????????????#### #????????????????? | | ?? ???????????????????????! #????????????????? | | # ???????????????????????! #####????????????? | | + ??##########???????????? ?????????????? | | # ??# #???????????? ??????????????? | | # ?# / #????????????? ???????????????? | | # ?# / #????????????? #????????????????? | | # ?# #???########### #????????????????? | | # ?# #???# @[g#* # #?????????? | | ## """" #???# =[lk/% + ######+#### | | # """" #???# =m%# # # | | """" #???# !=#= #??????# """ """ | | # * #???###########% #??????# """ """ = | | ##+####???????? ##??# #??????# """ """ = | | # ################ #??????# ? = | | = ! #??????? ?? | | ! ! ######??##+#### ## | | [ ##"T"#### | | # ############### = | | ############???# ^ ^ | | ## # #????# """ """ """ " | | ## # #???## " " " Y | | # ## + #???## " | | # ## # #???## | | # ## ###########??# # | | ######### #????????????#####+# ## ## # #+### | | ????????#####?????????????#] #### ## | | ??????????????????????????# """ ???####### | | ??????????????????????????# """ #????????# | | ??????????????????????????# """ #????????# | | ??????????????????????????# #????????# | | ??????????????????????????# !!] #????????# | | ??????????????????????????# !]] #????????###### | +----------------------------------------------------+ Best States ------------- Heat Dissipation 31 Energy Generation 15 Energy Capacity 160 Matter Stores 300 Matter Capacity 300 Sight Range 16 Terrain Scan Density 10 Evasion (%) 55 Item Schematics ----------------- Lgt. Ion Engine | -9/Materials | Scanalyzed Robot Schematics ------------------ None Fabricated ------------ Nothing Alien Tech Used ----------------- None Achievements -------------- Significant Disruption Challenges ------------ None Game ------ Seed HeartCooledGenerator Manual? 0 Play Time 00:56:36 Cumulative 7.8 hours Start 2022.07.26 @ 04:22:06 End 2022.07.26 @ 05:27:08 Sessions 1 Manual Loads 0 Difficulty Rogue Special Mode None Game No. 13 Rogue 13 Adventurer 0 Explorer 0 Win Type - Total 0 Types 0/0/0/0/0/0/0/0/0 Lore% 5 Gallery% 7 Achievement% 9 Wizard Run 0 Options --------- ASCII 0 Keyboard 0 Movement Numpad Keybinds 0 Fullscreen 2 Font 24/Smallcaps Map View 76x50 Tactical HUD 1 Map Filters NONE Filters NONE Steam 1 RUN: fa0b38bf-17ad-4364-8031-b2d437dc48c4